bitfinex/quotes_SOLUSD_20250531
["timestamp","ask_amount","ask_price","bid_price","bid_amount"]
[1748679005460,83.67182575,154.9,154.88,18.64964886]
[1748679006739,65.32308308,154.9,154.88,18.64964886]
[1748679008033,65.32308308,154.9,154.88,6.45656072]
[1748679008829,65.32308308,154.9,154.87,28.72964886]
[1748679009032,65.32308308,154.9,154.87,35.18652444]
[1748679012421,83.67182575,154.9,154.87,28.72964886]
[1748679013043,18.34874267,154.89,154.87,10.08]
[1748679014349,83.67182575,154.9,154.87,10.08]
[1748679014546,83.67182575,154.9,154.87,16.53689337]
[1748679014947,65.32308308,154.9,154.87,16.53689337]
[1748679016160,65.32308308,154.9,154.87,35.18654223]
[1748679016350,65.32308308,154.9,154.89,6.45619471]
[1748679020071,65.32308308,154.9,154.88,25.10623853]
[1748679022786,83.67182575,154.9,154.87,10.08]
[1748679022951,83.67182575,154.9,154.87,16.53687346]
[1748679023351,65.32308308,154.9,154.87,16.53687346]
[1748679025259,65.32308308,154.9,154.87,6.45687346]
[1748679026149,65.32308308,154.9,154.88,18.64964886]
[1748679026374,10.73370735,154.93,154.88,18.64964886]
[1748679026375,10.73370735,154.93,154.89,18.34874267]
[1748679026580,83.67182575,154.95,154.91,18.64964886]
[1748679026878,65.32308308,154.95,154.91,36.99839153]
[1748679028087,65.32308308,154.95,154.92,6.45494448]
[1748679028796,83.67182575,154.95,154.91,25.10486648]
[1748679028956,18.34874267,154.94,154.91,25.10486648]
[1748679030686,83.67182575,154.95,154.91,25.10486648]
[1748679033261,38.08373169,155.01,154.94,18.34874267]
[1748679033262,65.32308308,155.0,154.94,18.34874267]
[1748679033460,65.32308308,155.0,154.97,36.99839153]
[1748679033677,65.32308308,155.0,154.97,18.34874267]
[1748679035283,65.32308308,155.0,154.98,6.45244547]
[1748679036870,65.32308308,155.0,154.98,24.80118814]
[1748679037200,26.0,155.03,154.99,36.99839153]
[1748679037415,65.32308308,155.04,155.0,18.34874267]
[1748679037606,65.32308308,155.04,155.01,18.34874267]
[1748679038462,65.32308308,155.04,155.01,24.79970526]
[1748679038687,65.32308308,155.04,155.01,6.45096259]
[1748679038890,83.67182575,155.04,155.01,18.64964886]
[1748679041002,83.67182575,155.04,155.01,25.10068435]
[1748679041202,65.32308308,155.04,155.01,25.10068435]
[1748679041722,65.32308308,155.08,155.03,18.34874267]
[1748679042018,18.34874267,155.07,155.03,18.34874267]
[1748679042200,18.34874267,155.07,155.02,36.99839153]
[1748679042602,18.34874267,155.06,155.02,43.44879769]
[1748679042932,18.34874267,155.06,155.01,24.79984686]
[1748679043223,18.34874267,155.05,155.02,18.64964886]
[1748679043606,18.34874267,155.06,155.02,18.64964886]
[1748679043999,18.34874267,155.05,155.02,18.64964886]
[1748679045909,18.34874267,155.04,155.0,18.64964886]
[1748679046415,44.34874267,155.05,155.0,43.44989712]
[1748679048317,18.34874267,155.04,155.0,36.99839153]
[1748679048503,18.34874267,155.04,155.0,25.10121589]
[1748679048708,18.34874267,155.03,155.0,25.10121589]
[1748679049411,18.34874267,155.02,154.99,10.04]
[1748679051417,18.34874267,155.01,154.99,10.04]
[1748679051605,18.34874267,155.0,154.97,18.64964886]
[1748679052519,18.34874267,154.99,154.95,28.38874267]
[1748679052709,18.34874267,154.99,154.96,18.64964886]
[1748679053627,18.34874267,155.0,154.96,18.64964886]
[1748679054032,71.77434439,155.01,154.96,18.64964886]
[1748679054203,18.34874267,155.0,154.96,18.64964886]
[1748679054702,18.34874267,154.97,154.95,10.04]
[1748679054897,18.34874267,154.96,154.91,99.39525231]
[1748679055102,18.34874267,154.95,154.92,18.64964886]
[1748679055702,18.34874267,154.94,154.92,18.64964886]
[1748679056111,18.34874267,154.94,154.91,10.04]
[1748679056714,18.34874267,154.92,154.91,10.04]
[1748679056926,18.34874267,154.92,154.89,18.64964886]
[1748679057126,18.34874267,154.91,154.88,18.64964886]
[1748679057831,18.34874267,154.92,154.88,18.64964886]
[1748679058714,18.34874267,154.92,154.88,25.10623566]
[1748679059730,18.34874267,154.94,154.89,18.34874267]
[1748679061034,18.34874267,154.94,154.9,6.45577792]
[1748679061331,65.32308308,154.95,154.89,6.4560759]
[1748679061332,18.34874267,154.93,154.89,6.4560759]
[1748679061525,18.34874267,154.92,154.89,6.4560759]
[1748679061834,18.34874267,154.92,154.87,34.84564594]
[1748679062021,18.34874267,154.91,154.87,16.49690327]
[1748679063435,18.34874267,154.9,154.87,10.04]
[1748679063619,18.34874267,154.89,154.84,18.34874267]
[1748679063812,18.34874267,154.88,154.84,18.34874267]
[1748679064217,18.34874267,154.88,154.84,18.64964886]
[1748679064451,18.34874267,154.89,154.84,36.99839153]
[1748679064737,18.34874267,154.89,154.84,43.45667104]
[1748679065114,83.67182575,154.9,154.86,18.64964886]
[1748679065314,65.32308308,154.9,154.87,18.34874267]
[1748679065539,65.32308308,154.9,154.88,18.34874267]
[1748679065735,65.32308308,154.9,154.87,18.34874267]
[1748679066107,65.32308308,154.9,154.89,37.28271467]
[1748679066311,6.6488,154.97,154.9,18.64964886]
[1748679066312,18.34874267,154.97,154.9,18.64964886]
[1748679066512,18.34874267,154.97,154.93,18.34874267]
[1748679066715,36.30999108,154.98,154.93,6.45452785]
[1748679066909,18.34874267,154.97,154.93,6.45452785]
[1748679068054,18.34874267,154.96,154.92,6.45480506]
[1748679068858,18.34874267,154.97,154.92,24.80354773]
[1748679069758,18.34874267,154.96,154.92,6.45480506]
[1748679070139,10.30999108,154.98,154.94,18.34874267]
[1748679070927,10.30999108,154.98,154.95,6.45369474]
[1748679071132,28.65873375,154.98,154.95,6.45369474]
[1748679071630,28.65873375,154.98,154.94,6.4539618]
[1748679073551,18.34874267,154.97,154.93,34.88317695]
[1748679073850,18.34874267,154.96,154.93,10.08]
[1748679074055,18.34874267,154.95,154.93,10.08]
[1748679074225,18.34874267,154.96,154.93,16.53448041]
[1748679075854,18.34874267,154.96,154.93,10.08]
[1748679077763,18.34874267,154.95,154.93,10.08]
[1748679078062,18.34874267,154.94,154.88,36.99839153]
[1748679078267,18.34874267,154.93,154.88,47.07839153]
[1748679078760,18.34874267,154.91,154.88,28.72964886]
[1748679080057,18.34874267,154.91,154.88,35.18615272]
[1748679080262,18.34874267,154.92,154.88,35.18615272]
[1748679080440,18.34874267,154.92,154.88,53.53489539]
[1748679082561,18.34874267,154.92,154.88,35.18615272]
[1748679083563,18.34874267,154.92,154.88,53.53489539]
[1748679084358,18.34874267,154.92,154.88,35.18615272]
[1748679084957,27.6382,154.94,154.88,35.18615272]
[1748679085151,18.34874267,154.93,154.88,53.53489539]
[1748679086859,65.32308308,154.96,154.92,36.99839153]
[1748679087042,65.32308308,154.96,154.94,18.34874267]
[1748679087240,10.30999108,154.98,154.94,18.34874267]
[1748679087861,18.34874267,154.99,154.94,18.34874267]
[1748679088748,18.34874267,154.99,154.95,6.45369474]
[1748679088948,18.34874267,154.98,154.95,6.45369474]
[1748679090669,18.34874267,154.98,154.94,6.45411126]
[1748679091472,18.34874267,154.97,154.94,6.45411126]
[1748679092260,18.34874267,154.98,154.94,6.45411126]
[1748679092873,18.34874267,154.98,154.94,24.80285393]
[1748679093176,18.34874267,154.98,154.94,6.45411126]
[1748679094459,91.32308308,155.0,154.94,24.80285393]
[1748679094768,18.34874267,154.99,154.94,24.80285393]
[1748679096160,18.34874267,154.98,154.94,6.45411126]
[1748679096390,18.34874267,154.97,154.94,6.45411126]
[1748679096966,18.34874267,154.97,154.93,16.53442022]
[1748679097256,18.34874267,154.97,154.91,6.45536117]
[1748679097257,18.34874267,154.95,154.91,6.45536117]
[1748679097753,18.34874267,154.95,154.91,24.80410384]
[1748679101267,18.34874267,154.95,154.91,6.45536117]
[1748679102510,18.34874267,154.94,154.91,6.45536117]
[1748679102652,18.34874267,154.93,154.89,6.45606914]
[1748679102853,18.34874267,154.92,154.89,6.45606914]
[1748679103256,18.34874267,154.93,154.89,6.45606914]
[1748679104676,18.34874267,154.93,154.89,24.80481181]
[1748679104981,18.34874267,154.94,154.9,18.34874267]
[1748679105149,18.34874267,154.94,154.89,24.80481181]
[1748679105355,18.34874267,154.93,154.89,24.80481181]
[1748679106264,18.34874267,154.93,154.89,6.45606914]
[1748679106671,18.34874267,154.93,154.89,24.80481181]
[1748679107078,18.34874267,154.92,154.88,34.90519526]
[1748679107578,18.34874267,154.92,154.88,16.55645259]
[1748679108391,18.34874267,154.93,154.88,34.90519526]
[1748679110275,18.34874267,154.94,154.89,18.34874267]
[1748679111570,18.34874267,154.93,154.88,51.04672418]
[1748679112581,18.34874267,154.94,154.89,18.34874267]
[1748679113475,18.34874267,154.94,154.9,6.45577792]
[1748679114791,18.34874267,154.95,154.9,24.80452059]
[1748679116176,65.32308308,154.96,154.92,18.34874267]
[1748679116481,65.32308308,154.96,154.93,18.34874267]
[1748679116871,65.32308308,154.96,154.92,18.34874267]
[1748679118900,90.12517718,154.96,154.91,28.42874267]
[1748679119098,18.34874267,154.95,154.91,28.42874267]
[1748679119295,90.12517718,154.96,154.91,28.42874267]
[1748679120303,83.67182575,154.96,154.92,18.34874267]
[1748679120685,90.12521849,154.96,154.92,18.34874267]
[1748679121594,90.12521849,154.96,154.91,28.42874267]
[1748679121789,18.34874267,154.95,154.91,10.08]
[1748679121991,18.34874267,154.93,154.88,28.42874267]
[1748679122216,18.34874267,154.92,154.88,28.42874267]
[1748679122674,18.34874267,154.92,154.88,10.08]
[1748679122880,18.34874267,154.92,154.88,28.42874267]
[1748679123503,18.34874267,154.92,154.88,10.08]
[1748679124982,18.34874267,154.92,154.88,16.53660863]
[1748679129618,24.80381891,154.92,154.88,10.08]
[1748679131094,18.34874267,154.91,154.88,10.08]
[1748679131291,65.32308308,154.93,154.88,10.08]
[1748679131497,18.34874267,154.91,154.88,10.08]
[1748679131937,18.34874267,154.92,154.88,10.08]
[1748679133209,24.80397246,154.92,154.88,10.08]
[1748679135622,24.80397246,154.92,154.87,26.51726326]
[1748679135623,18.34874267,154.89,154.87,1.71161371]
[1748679135824,18.34874267,154.88,154.87,1.71161371]
[1748679137223,24.80535424,154.88,154.87,1.71161371]
[1748679138429,82.37409691,154.88,154.87,1.71161371]
[1748679145633,18.34874267,154.81,154.76,16.3175]
[1748679145809,18.34874267,154.79,154.76,16.3175]
[1748679146131,18.34874267,154.8,154.76,34.66624267]
[1748679147025,18.34874267,154.8,154.77,6.4608696]
[1748679148912,18.34874267,154.81,154.77,24.80961227]
[1748679149116,18.34874267,154.82,154.77,24.80961227]
[1748679149323,18.34874267,154.81,154.77,6.4608696]
[1748679149730,18.34874267,154.8,154.77,6.4608696]
[1748679150740,18.34874267,154.79,154.77,6.4608696]
[1748679153123,18.34874267,154.8,154.77,6.4608696]
[1748679154549,18.34874267,154.8,154.76,16.54145289]
[1748679155045,18.34874267,154.79,154.76,16.54145289]
[1748679155929,18.34874267,154.79,154.76,10.08]
[1748679156445,18.34874267,154.79,154.72,10.06]
[1748679156446,18.34874267,154.77,154.72,10.06]
[1748679156629,18.34874267,154.74,154.72,10.06]
[1748679156830,18.34874267,154.75,154.72,10.06]
[1748679158023,18.34874267,154.75,154.72,16.5232677]
[1748679158633,18.34874267,154.74,154.72,16.5232677]
[1748679158838,18.34874267,154.75,154.72,16.5232677]
[1748679159433,18.34874267,154.76,154.72,16.5232677]
[1748679159638,165.24874267,154.77,154.73,18.34874267]
[1748679160439,165.24874267,154.77,154.72,16.5232677]
[1748679160440,165.24874267,154.77,154.72,34.87201037]
[1748679160855,165.24874267,154.77,154.72,16.5232677]
[1748679160856,18.34874267,154.76,154.72,16.5232677]
[1748679161153,18.34874267,154.75,154.72,16.5232677]
[1748679162743,146.9,154.77,154.72,16.5232677]
[1748679163057,165.24874267,154.77,154.72,34.87201037]
[1748679163830,146.9,154.77,154.74,18.34874267]
[1748679164368,18.34874267,154.8,154.76,18.34874267]
[1748679164662,65.28,154.81,154.77,6.46120049]
[1748679164663,18.34874267,154.79,154.77,6.46120049]
[1748679166244,65.28,154.81,154.75,24.81077821]
[1748679166453,18.34874267,154.8,154.75,24.81077821]
[1748679167763,146.9,154.82,154.78,18.34874267]
[1748679167961,18.34874267,154.84,154.79,18.34874267]
[1748679168164,18.34874267,154.84,154.77,10.34432314]
[1748679168165,18.34874267,154.85,154.8,18.34874267]
[1748679168442,18.34874267,154.85,154.81,6.45953103]
[1748679168841,18.34874267,154.84,154.81,6.45953103]
[1748679170453,18.34874267,154.85,154.81,6.45953103]
[1748679173876,18.34874267,154.84,154.81,6.45953103]
[1748679174082,18.34874267,154.83,154.8,6.45994737]
[1748679174270,18.34874267,154.83,154.79,6.46036565]
[1748679179785,18.34874267,154.82,154.79,6.46036565]
[1748679180357,18.34874267,154.83,154.79,6.46036565]
[1748679182370,39.26,154.84,154.79,6.46036565]
[1748679182572,18.34874267,154.83,154.79,6.46036565]
[1748679188669,146.9,154.86,154.8,18.34874267]
[1748679188884,18.34874267,154.85,154.8,18.34874267]
[1748679189078,165.24874267,154.86,154.81,18.34874267]
[1748679189283,165.24874267,154.86,154.82,6.4591138]
[1748679189573,18.34874267,154.85,154.82,6.4591138]
[1748679190085,18.34874267,154.84,154.81,6.45938901]
[1748679191196,18.34874267,154.84,154.79,18.933972]
[1748679191378,18.34874267,154.84,154.78,6.46078304]
[1748679191379,18.34874267,154.83,154.78,24.80952571]
[1748679193770,18.34874267,154.83,154.78,6.46078304]
[1748679193980,18.34874267,154.83,154.78,24.80952571]
[1748679195783,18.34874267,154.81,154.77,16.5211891]
[1748679197619,18.34874267,154.81,154.77,34.86993177]
[1748679198403,18.34874267,154.82,154.77,34.86993177]
[1748679198908,18.34874267,154.81,154.77,16.5211891]
[1748679199208,18.34874267,154.8,154.77,10.06]
[1748679199385,153.3589251,154.83,154.77,10.06]
[1748679199386,18.34874267,154.79,154.77,10.06]
[1748679199587,18.34874267,154.79,154.75,6.46175535]
[1748679199991,154.9229251,154.83,154.75,6.46175535]
[1748679200305,18.34874267,154.79,154.75,6.46175535]
[1748679201108,18.34874267,154.79,154.74,24.81118367]
[1748679201297,18.34874267,154.78,154.74,6.462441]
[1748679201707,6.4600055,154.8,154.74,6.462441]
[1748679201895,18.34874267,154.78,154.74,24.81118367]
[1748679202301,18.34874267,154.78,154.74,6.462441]
[1748679202511,18.34874267,154.78,154.74,24.81118367]
[1748679203381,18.34874267,154.78,154.74,6.462441]
[1748679203614,18.34874267,154.78,154.74,24.81118367]
[1748679204233,18.34874267,154.78,154.74,6.462441]
[1748679205018,18.34874267,154.77,154.74,6.462441]
[1748679205425,18.34874267,154.78,154.74,6.462441]
[1748679205601,18.34874267,154.78,154.74,24.81118367]
[1748679207219,18.34874267,154.78,154.74,6.462441]
[1748679208916,18.34874267,154.77,154.74,6.462441]
[1748679209928,18.34874267,154.76,154.73,10.08]
[1748679210312,18.34874267,154.75,154.73,10.08]
[1748679210531,18.34874267,154.75,154.71,6.4636353]
[1748679211430,18.34874267,154.74,154.71,6.4636353]
[1748679212030,18.34874267,154.74,154.7,8.0909259]
[1748679213823,6.46207189,154.75,154.7,8.0909259]
[1748679213824,18.34874267,154.73,154.7,8.0909259]
[1748679216030,18.34874267,154.73,154.7,1.62681103]
[1748679217320,18.34874267,154.71,154.7,1.62681103]
[1748679219012,18.34874267,154.71,154.69,26.65396726]
[1748679220030,18.34874267,154.7,154.69,16.57396726]
[1748679220420,24.81286678,154.7,154.69,16.57396726]
[1748679224248,50.81286678,154.7,154.69,16.57396726]
[1748679225045,26.0,154.66,154.65,16.57305669]
[1748679225362,44.34874267,154.66,154.65,16.57305669]
[1748679225854,62.69748534,154.66,154.65,16.57305669]
[1748679226623,50.8145386,154.66,154.65,16.57305669]
[1748679226953,26.0,154.66,154.65,16.57305669]
[1748679227156,18.34874267,154.66,154.65,16.57305669]
[1748679227637,44.34874267,154.66,154.65,16.57305669]
[1748679233852,50.8145386,154.66,154.65,16.57305669]
[1748679234852,90.0745386,154.66,154.65,16.57305669]
[1748679239457,83.60874267,154.66,154.65,16.57305669]
[1748679240243,44.34874267,154.66,154.65,16.57305669]
[1748679240447,18.34874267,154.67,154.64,6.46634447]
[1748679241069,44.34874267,154.66,154.63,6.4669576]
[1748679241677,44.34874267,154.66,154.62,6.46746863]
[1748679242560,26.0,154.66,154.62,6.46746863]
[1748679242873,18.34874267,154.68,154.64,18.34874267]
[1748679243285,18.34874267,154.68,154.63,37.28271467]
[1748679243776,18.34874267,154.68,154.64,6.46663217]
[1748679244261,18.34874267,154.68,154.64,24.81537484]
[1748679244466,46.05838836,154.69,154.64,24.81537484]
[1748679244666,27.70964569,154.69,154.67,18.34874267]
[1748679245375,27.70964569,154.69,154.66,18.34874267]
[1748679246181,27.70964569,154.69,154.67,6.4653779]
[1748679246478,27.70964569,154.69,154.67,24.81412057]
[1748679246773,27.70964569,154.69,154.68,18.34874267]
[1748679246957,146.9,154.71,154.68,18.34874267]
[1748679247777,146.9,154.71,154.67,24.81412057]
[1748679247984,165.24874267,154.71,154.67,6.4653779]
[1748679248460,18.34874267,154.68,154.62,17.9903]
[1748679248668,18.34874267,154.67,154.62,36.33904267]
[1748679249282,18.34874267,154.67,154.63,6.46705037]
[1748679249580,18.34874267,154.66,154.63,6.46705037]
[1748679250177,18.34874267,154.65,154.63,6.46705037]
[1748679251771,18.34874267,154.65,154.62,16.52744011]
[1748679252255,18.34874267,154.64,154.62,10.06]
[1748679252757,18.34874267,154.64,154.61,6.46772173]
[1748679253373,18.34874267,154.64,154.6,6.4683053]
[1748679254105,146.9,154.66,154.6,24.81704797]
[1748679254275,18.34874267,154.64,154.6,24.81704797]
[1748679258071,153.36585796,154.66,154.6,24.81704797]
[1748679258286,18.34874267,154.64,154.6,24.81704797]
[1748679261681,18.34874267,154.64,154.59,6.46872372]
[1748679261877,18.34874267,154.63,154.59,6.46872372]
[1748679262171,18.34874267,154.62,154.59,6.46872372]
[1748679262477,18.34874267,154.61,154.58,16.52899734]
[1748679263285,18.34874267,154.62,154.58,16.52899734]
[1748679263474,18.34874267,154.63,154.59,18.34874267]
[1748679263805,18.34874267,154.65,154.61,24.81662961]
[1748679263980,146.9,154.66,154.63,18.34874267]
[1748679264580,146.9,154.66,154.62,36.99839153]
[1748679264977,146.9,154.66,154.63,24.81579304]
[1748679265789,146.9,154.66,154.63,6.46705037]
[1748679266103,146.9,154.66,154.63,34.87579304]
[1748679269384,165.24874267,154.66,154.63,16.52705037]
[1748679269592,18.34874267,154.65,154.63,10.06]
[1748679269782,18.34874267,154.65,154.62,6.46744516]
[1748679270001,18.34874267,154.64,154.61,6.467754]
[1748679270606,18.34874267,154.64,154.6,6.46818617]
[1748679270915,18.34874267,154.63,154.6,6.46818617]
[1748679271403,18.34874267,154.62,154.59,16.52867941]
[1748679273806,18.34874267,154.63,154.59,34.87742208]
[1748679274622,18.34874267,154.63,154.59,16.52867941]
[1748679276624,146.9,154.64,154.59,16.52867941]
[1748679276912,165.24874267,154.64,154.6,18.34874267]
[1748679277507,165.24874267,154.64,154.59,34.87742208]
[1748679279491,165.24874267,154.64,154.61,6.46788694]
[1748679281810,165.24874267,154.64,154.6,6.4683053]
[1748679285300,18.34874267,154.63,154.6,6.4683053]
[1748679286496,165.24874267,154.64,154.6,6.4683053]
[1748679287205,18.34874267,154.63,154.6,6.4683053]
[1748679287727,18.34874267,154.63,154.59,34.8774646]
[1748679290329,18.34874267,154.63,154.59,16.52872193]
[1748679292840,165.24874267,154.64,154.59,34.8774646]
[1748679296608,18.34874267,154.63,154.59,16.52872193]
[1748679297001,18.34874267,154.63,154.59,6.46872193]
[1748679300198,18.34874267,154.62,154.57,34.91809901]
[1748679300402,18.34874267,154.63,154.58,18.34874267]
[1748679300621,146.9,154.64,154.6,18.34874267]
[1748679301320,165.24874267,154.64,154.59,24.81746639]
[1748679302109,18.34874267,154.62,154.58,6.46901377]
[1748679302515,18.34874267,154.63,154.58,6.46901377]
[1748679302928,24.81579449,154.63,154.58,6.46901377]
[1748679303445,18.34874267,154.63,154.58,6.46901377]
[1748679303612,18.34874267,154.62,154.57,34.91827375]
[1748679304444,18.34874267,154.61,154.57,10.1]
[1748679304642,71.72708053,154.63,154.55,6.47030292]
[1748679304643,18.34874267,154.59,154.55,6.47030292]
[1748679305839,18.34874267,154.61,154.56,18.34874267]
[1748679306041,18.34874267,154.61,154.57,18.34874267]
[1748679307012,18.34874267,154.61,154.58,6.46914219]
[1748679307848,146.9,154.62,154.58,6.46914219]
[1748679308062,18.34874267,154.61,154.58,6.46914219]
[1748679310243,18.34874267,154.6,154.57,6.46939779]
[1748679310820,18.34874267,154.6,154.55,6.47039792]
[1748679311130,18.34874267,154.6,154.55,24.81914059]
[1748679311539,18.34874267,154.59,154.55,24.81914059]
[1748679312338,18.34874267,154.59,154.55,6.47039792]
[1748679312534,18.34874267,154.59,154.55,24.81914059]
[1748679313424,18.34874267,154.58,154.54,0.2157408]
[1748679313641,18.34874267,154.57,154.54,0.2157408]
[1748679313865,18.34874267,154.58,154.54,0.2157408]
[1748679314226,165.24874267,154.59,154.54,18.56448347]
[1748679314420,165.24874267,154.59,154.55,18.34874267]
[1748679314421,146.9,154.59,154.55,18.34874267]
[1748679314651,146.9,154.59,154.56,18.34874267]
[1748679314948,146.9,154.59,154.57,18.34874267]
[1748679315241,146.9,154.59,154.58,18.34874267]
[1748679315457,191.24874267,154.63,154.58,18.34874267]
[1748679315628,18.34874267,154.62,154.57,18.34874267]
[1748679316449,18.34874267,154.62,154.58,6.46914219]
[1748679316649,191.24874267,154.63,154.58,24.81788486]
[1748679317534,18.34874267,154.62,154.58,24.81788486]
[1748679318869,18.34874267,154.62,154.58,6.46914219]
[1748679319039,18.34874267,154.62,154.58,24.81788486]
[1748679324062,18.34874267,154.62,154.58,18.34874267]
[1748679324545,191.24874267,154.63,154.58,18.34874267]
[1748679325330,146.9,154.63,154.59,18.34874267]
[1748679325534,146.9,154.63,154.61,18.34874267]
[1748679325729,146.9,154.63,154.6,18.34874267]
[1748679326145,146.9,154.63,154.61,6.46788694]
[1748679329163,146.9,154.63,154.58,24.81788486]
[1748679329164,18.34874267,154.62,154.58,24.81788486]
[1748679329540,18.34874267,154.62,154.58,6.46914219]
[1748679329740,18.34874267,154.61,154.58,6.46914219]
[1748679330053,18.34874267,154.61,154.57,6.4694035]
[1748679330269,18.34874267,154.6,154.57,6.4694035]
[1748679330564,18.34874267,154.61,154.57,6.4694035]
[1748679330748,18.34874267,154.61,154.57,24.81814617]
[1748679330950,18.34874267,154.61,154.57,23.81814617]
[1748679331942,18.34874267,154.61,154.57,5.4694035]
[1748679333061,18.34874267,154.62,154.57,23.81814617]
[1748679333850,18.34874267,154.61,154.57,23.81814617]
[1748679334567,18.34874267,154.61,154.57,5.4694035]
[1748679335766,18.34874267,154.59,154.56,10.08]
[1748679336446,18.34874267,154.58,154.54,25.03516889]
[1748679336954,18.34874267,154.55,154.54,0.2157408]
[1748679343949,1.6575,154.56,154.54,0.2157408]
[1748679344143,18.34874267,154.56,154.54,0.2157408]
[1748679344373,26.0,154.55,154.54,0.2157408]
[1748679344575,44.34874267,154.55,154.54,0.2157408]
[1748679352261,50.81914059,154.55,154.54,0.2157408]
[1748679356168,44.34874267,154.55,154.54,0.2157408]
[1748679357079,50.81914059,154.55,154.54,0.2157408]
[1748679359969,44.34874267,154.55,154.54,0.2157408]
[1748679362872,50.81914059,154.55,154.54,0.2157408]
[1748679363991,44.26443548,154.55,154.54,0.2157408]
[1748679364670,44.26443548,154.55,154.46,6.4741174]
[1748679364671,11.79403756,154.52,154.46,6.4741174]
[1748679364872,11.79403756,154.49,154.46,6.4741174]
[1748679365874,18.43640986,154.49,154.45,6.47458724]
[1748679366189,18.43640986,154.46,154.44,10.08]
[1748679366365,18.43640986,154.45,154.41,93.14]
[1748679366559,26.0,154.48,154.41,93.14]
[1748679366560,18.43640986,154.44,154.41,93.14]
[1748679366994,18.43640986,154.44,154.4,18.10110188]
[1748679367194,18.43640986,154.44,154.4,16.55640188]
[1748679367891,18.43640986,154.43,154.4,16.55640188]
[1748679368100,18.43640986,154.44,154.4,16.55640188]
[1748679369798,148.5621,154.47,154.4,16.55640188]
[1748679369799,18.43640986,154.43,154.4,16.55640188]
[1748679373402,18.43640986,154.43,154.4,10.08]
[1748679373606,18.43640986,154.42,154.38,6.47742458]
[1748679374193,18.43640986,154.41,154.38,6.47742458]
[1748679375713,18.43640986,154.4,154.38,6.47742458]
[1748679376308,18.43640986,154.4,154.37,6.47785238]
[1748679376910,18.43640986,154.39,154.36,10.08]
[1748679377405,146.9,154.42,154.36,10.08]
[1748679377406,146.9,154.42,154.36,16.55831426]
[1748679377582,18.43640986,154.39,154.36,10.08]
[1748679378081,18.43640986,154.39,154.36,16.55824026]
[1748679378286,146.9,154.42,154.38,18.43640986]
[1748679378504,146.9,154.42,154.39,18.43640986]
[1748679378809,18.43640986,154.45,154.4,18.43640986]
[1748679379507,18.43640986,154.45,154.41,18.43640986]
[1748679379694,18.43640986,154.45,154.41,24.91228618]
[1748679381087,18.43640986,154.45,154.41,6.47587632]
[1748679381607,18.43640986,154.43,154.39,24.91351329]
[1748679383708,18.43640986,154.43,154.39,6.47710343]
[1748679383888,18.43640986,154.41,154.37,6.47783339]
[1748679384092,18.43640986,154.4,154.37,6.47783339]
[1748679384785,18.43640986,154.41,154.37,6.47783339]
[1748679385207,18.43640986,154.4,154.36,28.51640986]
[1748679385408,18.43640986,154.4,154.36,10.08]
[1748679385780,18.43640986,154.4,154.36,28.51640986]
[1748679385981,18.43640986,154.41,154.36,34.99475094]
[1748679389911,18.43640986,154.41,154.36,16.55834108]
[1748679390102,18.43640986,154.4,154.36,16.55834108]
[1748679390300,18.43640986,154.4,154.36,10.08]
[1748679390521,18.43640986,154.39,154.36,10.08]
[1748679390703,18.43640986,154.39,154.35,6.47862111]
[1748679392296,18.43640986,154.39,154.34,24.9154671]
[1748679392297,24.91355499,154.39,154.34,24.9154671]
[1748679392612,24.91355499,154.39,154.34,18.43640986]
[1748679392811,18.43640986,154.38,154.33,24.9158699]
[1748679393009,165.33640986,154.38,154.33,24.9158699]
[1748679393507,146.9,154.38,154.34,18.43640986]
[1748679393685,165.33640986,154.38,154.33,24.9158699]
[1748679394319,171.81409364,154.38,154.33,24.9158699]
[1748679394496,165.33640986,154.38,154.33,24.9158699]
[1748679396513,44.43640986,154.35,154.29,8.1563]
[1748679396724,18.43640986,154.32,154.28,1.548106]
[1748679396899,18.43640986,154.31,154.28,1.548106]
[1748679397301,18.43640986,154.31,154.28,8.02978641]
[1748679397516,18.43640986,154.32,154.28,8.02978641]
[1748679397842,18.43640986,154.32,154.28,1.548106]
[1748679397843,18.43640986,154.3,154.28,1.548106]
[1748679398191,6.48088139,154.3,154.22,7.0170928]
[1748679398391,18.43640986,154.28,154.23,18.43640986]
[1748679398608,146.9,154.29,154.24,18.43640986]
[1748679398609,165.33640986,154.29,154.24,18.43640986]
[1748679398827,146.9,154.29,154.25,18.43640986]
[1748679398998,18.43640986,154.27,154.23,6.48374124]
[1748679399404,18.43640986,154.27,154.23,24.9201511]
[1748679399605,18.43640986,154.28,154.23,24.9201511]
[1748679400906,146.9,154.29,154.25,18.43640986]
[1748679401619,165.33640986,154.29,154.25,18.43640986]
[1748679401825,165.33640986,154.29,154.24,18.43640986]
[1748679402332,165.33640986,154.29,154.25,6.48298217]
[1748679403434,165.33640986,154.29,154.25,24.91939203]
[1748679403813,165.33640986,154.29,154.25,6.48298217]